[Event "84th ESP-ch 2019"]
[Site "Marbella"]
[Date "2019.11.21"]
[Round "6.16"]
[White "Vega Gutierrez, Sabrina"]
[Black "Calzetta Ruiz, Monica"]
[Result "1/2-1/2"]
[ECO "A57"]
[WhiteElo "2374"]
[BlackElo "2251"]
[Annotator "RC"]
[PlyCount "71"]
[EventDate "2019.11.16"]
[EventType "swiss"]
[EventCountry "ESP"]
[SourceTitle "playchess.com"]
[Source "ChessBase"]
[SourceQuality "1"]
[TimeControl "5400+30"]

1. d4 {[%emt 0:00:00]} Nf6 {[%emt 0:01:36]} 2. c4 {[%emt 0:00:00]} c5 {[%emt 0:00:15]} 3. d5 {[%emt 0:00:05]} b5 {[%emt 0:00:06]} 4. cxb5 {[%emt 0:00:10]} a6 {[%emt 0:01:04]} 5. e3 {[%emt 0:00:43]} g6 {[%emt 0:03:29]} 6. Nc3 {[%emt 0:00:30]} Bg7 {[%emt 0:00:23]} 7. e4 {[%emt 0:00:44]} d6 {[%emt 0:00:07]} 8. Nf3 {[%emt 0:03:49]} O-O {[%emt 0:09:14]} 9. a4 {[%emt 0:00:55]} e6 {[%emt 0:04:45]} 10. dxe6 {[%emt 0:22:04]} Bxe6 {[%emt 0:03:11]} 11. Be2 {[%emt 0:04:54]} axb5 {[%emt 0:00:36]} 12. Bxb5 {[%emt 0:00:56]} d5 {[%emt 0:10:16]} 13. Bg5 {[%emt 0:21:01]} d4 {[%emt 0:28:00]} 14. e5 {[%emt 0:01:51]} dxc3 {[%emt 0:00:55]} 15. exf6 {[%emt 0:01:04]} Bxf6 {[%emt 0:01:57]} 16. Qxd8 {[%emt 0:00:37]} Bxd8 {[%emt 0:00:10]} 17. bxc3 {[%emt 0:01:12]} Ba5 {[%emt 0:00:59]} 18. Bd2 {[%emt 0:10:29]} Nd7 {[%emt 0:05:00]} 19. c4 {[%emt 0:02:24]} Nb6 {[%emt 0:06:26]} 20. Bxa5 {[%emt 0:03:21]} Rxa5 {[%emt 0:00:03]} 21. Ne5 {[%emt 0:10:35]} f6 {[%emt 0:01:14]} 22. Nc6 {[%emt 0:00:21]} Raa8 {[%emt 0:00:08]} 23. O-O {[%emt 0:00:41]} Bxc4 {[%emt 0:03:41]} 24. Bxc4+ {[%emt 0:01:47]} Nxc4 {[%emt 0:00:03]} 25. Rfc1 {[%emt 0:00:51]} Na5 {[%emt 0:00:05]} 26. Nxa5 {[%emt 0:03:11]} Rxa5 {[%emt 0:00:03]} 27. g3 {[%emt 0:03:01]} Rb8 {[%emt 0:00:36]} 28. Rd1 {[%emt 0:03:17]} c4 {[%emt 0:02:27]} 29. Rd7 {[%emt 0:00:33]} Rc5 {[%emt 0:09:01]} 30. Re1 {[%emt 0:00:13]} c3 {[%emt 0:00:38]} 31. Ree7 {[%emt 0:00:07]} c2 {[%emt 0:00:17]} 32. Rg7+ {[%emt 0:00:08]} Kf8 {[%emt 0:00:05]} 33. Rgf7+ {[%emt 0:00:16]} Ke8 {[%emt 0:00:06]} 34. Rfe7+ {[%emt 0:00:05]} Kf8 {[%emt 0:00:07]} 35. Rf7+ {[%emt 0:00:15]} Ke8 {[%emt 0:00:07]} 36. Rfe7+ {[%emt 0:00:03]} 1/2-1/2

[Event "84th ESP-ch 2019"]
[Site "Marbella"]
[Date "2019.11.21"]
[Round "6.17"]
[White "Vega Gutierrez, Belinda"]
[Black "Larino Nieto, David"]
[Result "0-1"]
[ECO "A11"]
[WhiteElo "2161"]
[BlackElo "2473"]
[Annotator "ChessBase"]
[PlyCount "58"]
[EventDate "2019.11.16"]
[EventType "swiss"]
[EventCountry "ESP"]
[SourceTitle "playchess.com"]
[Source "ChessBase"]
[SourceQuality "1"]
[TimeControl "5400+30"]

1. e4 {[%emt 0:00:00]} a6 {[%emt 0:13:41]} 2. d4 {[%emt 0:00:23]} g6 {[%emt 0:12:21]} 3. Nf3 {[%emt 0:04:59]} Bg7 {[%emt 0:00:43]} 4. h4 {[%emt 0:01:07]} d5 {[%emt 0:01:11]} 5. exd5 {[%emt 0:02:39]} Qxd5 {[%emt 0:00:05]} 6. Nc3 {[%emt 0:02:36]} Qh5 {[%emt 0:03:55]} 7. Be2 {[%emt 0:04:38]} Bg4 {[%emt 0:00:46]} 8. Bf4 {[%emt 0:03:16]} c5 {[%emt 0:03:57]} 9. dxc5 {[%emt 0:25:13]} Nc6 {[%emt 0:01:32]} 10. Nd5 {[%emt 0:14:57]} Rd8 {[%emt 0:00:46]} 11. c4 {[%emt 0:00:09]} Nf6 {[%emt 0:02:58]} 12. Bg5 {[%emt 0:15:02]} Ne4 {[%emt 0:08:51]} 13. Nf4 {[%emt 0:06:19]} Rxd1+ {[%emt 0:01:12]} 14. Rxd1 {[%emt 0:00:02]} Nxg5 {[%emt 0:00:44]} 15. Nxh5 {[%emt 0:00:13]} Nxf3+ {[%emt 0:00:04]} 16. Bxf3 {[%emt 0:00:05]} gxh5 {[%emt 0:00:33]} 17. Bxc6+ {[%emt 0:04:42]} bxc6 {[%emt 0:00:02]} 18. f3 {[%emt 0:00:05]} Be6 {[%emt 0:00:26]} 19. b3 {[%emt 0:00:09]} Bc3+ {[%emt 0:00:26]} 20. Ke2 {[%emt 0:01:24]} Rg8 {[%emt 0:00:24]} 21. Rd3 {[%emt 0:01:59]} Rxg2+ {[%emt 0:00:25]} 22. Ke3 {[%emt 0:03:56]} Bb4 {[%emt 0:00:09]} 23. Rhd1 {[%emt 0:00:46]} Bxc5+ {[%emt 0:00:10]} 24. Ke4 {[%emt 0:00:17]} Kf8 {[%emt 0:03:28]} 25. Rd8+ {[%emt 0:01:32]} Kg7 {[%emt 0:00:02]} 26. R1d2 {[%emt 0:03:56]} Rg6 {[%emt 0:00:02]} 27. Ra8 {[%emt 0:00:45]} a5 {[%emt 0:00:02]} 28. Rd1 {[%emt 0:01:13]} Kf6 {[%emt 0:00:18]} 29. Kd3 {[%emt 0:01:12]} Rg2 {[%emt 0:00:02] Kd4 Ke5+} 0-1

[Event "84th ESP-ch 2019"]
[Site "Marbella"]
[Date "2019.11.21"]
[Round "6.22"]
[White "Guerra Rivera, Salvador"]
[Black "Romero Calduch, Sergio"]
[Result "1-0"]
[ECO "B12"]
[WhiteElo "2334"]
[BlackElo "2130"]
[Annotator "ChessBase"]
[PlyCount "57"]
[EventDate "2019.11.16"]
[EventType "swiss"]
[EventCountry "ESP"]
[SourceTitle "playchess.com"]
[Source "ChessBase"]
[SourceQuality "1"]
[TimeControl "5400+30"]

1. e4 {[%emt 0:00:00]} c6 {[%emt 0:02:51]} 2. d4 {[%emt 0:00:00]} d5 {[%emt 0:00:10]} 3. e5 {[%emt 0:00:05]} Bf5 {[%emt 0:00:25]} 4. h4 {[%emt 0:00:34]} h5 {[%emt 0:01:59]} 5. Bd3 {[%emt 0:00:15]} Bxd3 {[%emt 0:01:28]} 6. Qxd3 {[%emt 0:00:06]} e6 {[%emt 0:00:09]} 7. Bg5 {[%emt 0:00:30]} Qb6 {[%emt 0:07:41]} 8. Nd2 {[%emt 0:00:29]} Nh6 {[%emt 0:01:58]} 9. Ne2 {[%emt 0:08:06]} Nf5 {[%emt 0:08:39]} 10. c4 {[%emt 0:03:28]} Bb4 {[%emt 0:08:11]} 11. b3 {[%emt 0:03:19]} Be7 {[%emt 0:06:37]} 12. Nf3 {[%emt 0:09:43]} Qa6 {[%emt 0:05:09]} 13. O-O {[%emt 0:15:27]} Bxg5 {[%emt 0:09:07]} 14. hxg5 {[%emt 0:00:35]} g6 {[%emt 0:00:20]} 15. Nf4 {[%emt 0:03:14]} Nd7 {[%emt 0:11:02]} 16. Rfc1 {[%emt 0:09:18]} dxc4 {[%emt 0:05:23]} 17. bxc4 {[%emt 0:01:49]} Nb6 {[%emt 0:00:48]} 18. a4 {[%emt 0:06:40]} O-O-O {[%emt 0:13:21]} 19. Qc3 {[%emt 0:07:20]} Kb8 {[%emt 0:10:49]} 20. a5 {[%emt 0:01:14]} Nc8 {[%emt 0:00:39]} 21. Nd3 {[%emt 0:00:36]} c5 {[%emt 0:01:47]} 22. Nxc5 {[%emt 0:00:13]} Qc6 {[%emt 0:00:09]} 23. Rab1 {[%emt 0:12:50]} Nxd4 {[%emt 0:01:00]} 24. Nxb7 {[%emt 0:00:55]} Ne2+ {[%emt 0:00:32]} 25. Kf1 {[%emt 0:00:04]} Nxc3 {[%emt 0:00:15]} 26. Nxd8+ {[%emt 0:00:04]} Nxb1 {[%emt 0:00:50]} 27. Nxc6+ {[%emt 0:00:04]} Kc7 {[%emt 0:00:40]} 28. Ncd4 {[%emt 0:00:18]} Na3 {[%emt 0:00:54]} 29. Rc3 {[%emt 0:00:12]} 1-0

[Event "84th ESP-ch 2019"]
[Site "Marbella"]
[Date "2019.11.21"]
[Round "6.31"]
[White "Aguado Doncel, Pablo Luis"]
[Black "Martin Carmona, Gaston Manuel"]
[Result "0-1"]
[ECO "E92"]
[WhiteElo "2062"]
[BlackElo "2304"]
[Annotator "ChessBase"]
[PlyCount "74"]
[EventDate "2019.11.16"]
[EventType "swiss"]
[EventCountry "ESP"]
[SourceTitle "playchess.com"]
[Source "ChessBase"]
[SourceQuality "1"]
[TimeControl "5400+30"]

1. d4 {[%emt 0:00:00]} Nf6 {[%emt 0:00:23]} 2. c4 {[%emt 0:00:06]} g6 {[%emt 0:00:19]} 3. Nc3 {[%emt 0:00:18]} Bg7 {[%emt 0:00:25]} 4. e4 {[%emt 0:00:28]} O-O {[%emt 0:00:19]} 5. Nf3 {[%emt 0:00:39]} d6 {[%emt 0:00:15]} 6. Be2 {[%emt 0:00:40]} e5 {[%emt 0:00:06]} 7. d5 {[%emt 0:00:16]} a5 {[%emt 0:00:28]} 8. Bg5 {[%emt 0:00:29]} h6 {[%emt 0:00:05]} 9. Bh4 {[%emt 0:00:18]} Na6 {[%emt 0:00:05]} 10. Nd2 {[%emt 0:00:51]} Bd7 {[%emt 0:00:49]} 11. O-O {[%emt 0:01:36]} Qe8 {[%emt 0:01:03]} 12. b3 {[%emt 0:00:16]} Nh7 {[%emt 0:00:05]} 13. a3 {[%emt 0:00:45]} h5 {[%emt 0:00:13]} 14. f3 {[%emt 0:00:24]} Bh6 {[%emt 0:00:05]} 15. Rb1 {[%emt 0:00:40]} Be3+ {[%emt 0:00:18]} 16. Kh1 {[%emt 0:00:21]} Bc5 {[%emt 0:00:05]} 17. Qc1 {[%emt 0:00:35]} f5 {[%emt 0:00:06]} 18. exf5 {[%emt 0:01:42]} gxf5 {[%emt 0:01:51]} 19. f4 {[%emt 0:00:27]} e4 {[%emt 0:06:07]} 20. Rd1 {[%emt 0:14:52]} Be3 {[%emt 0:07:44]} 21. Rf1 {[%emt 0:01:17]} Qg6 {[%emt 0:04:53]} 22. b4 {[%emt 0:04:23]} Qh6 {[%emt 0:01:31]} 23. g3 {[%emt 0:04:50]} axb4 {[%emt 0:01:04]} 24. axb4 {[%emt 0:00:05]} Bd4 {[%emt 0:00:34]} 25. c5 {[%emt 0:10:27]} dxc5 {[%emt 0:06:06]} 26. Bxa6 {[%emt 0:00:53]} Qxa6 {[%emt 0:02:41]} 27. bxc5 {[%emt 0:02:14]} Bxc5 {[%emt 0:09:33]} 28. Ncxe4 {[%emt 0:04:16]} Be3 {[%emt 0:04:06]} 29. Qc3 {[%emt 0:15:41]} Qa7 {[%emt 0:09:40]} 30. Qxc7 {[%emt 0:14:15]} fxe4 {[%emt 0:12:18]} 31. Nc4 {[%emt 0:07:00]} b5 {[%emt 0:02:00]} 32. Qxa7 {[%emt 0:00:17]} Bxa7 {[%emt 0:00:07]} 33. Ne5 {[%emt 0:00:45]} Bf5 {[%emt 0:03:41]} 34. Rxb5 {[%emt 0:02:08]} e3 {[%emt 0:00:20]} 35. Rb4 {[%emt 0:01:36]} Rfb8 {[%emt 0:02:29]} 36. Ra4 {[%emt 0:02:57]} e2 {[%emt 0:00:56]} 37. Re1 {[%emt 0:05:14]} Bf2 {[%emt 0:00:26]} 0-1

[Event "84th ESP-ch 2019"]
[Site "Marbella"]
[Date "2019.11.21"]
[Round "6.33"]
[White "Sosa Suarez, Carla Cristina"]
[Black "Hernandez Roldan, Miguel"]
[Result "0-1"]
[ECO "B75"]
[WhiteElo "2022"]
[BlackElo "2229"]
[Annotator "ChessBase"]
[PlyCount "108"]
[EventDate "2019.11.16"]
[EventType "swiss"]
[EventCountry "ESP"]
[SourceTitle "playchess.com"]
[Source "ChessBase"]
[SourceQuality "1"]
[TimeControl "5400+30"]

1. e4 {[%emt 0:00:00]} c5 {[%emt 0:00:00]} 2. Nf3 {[%emt 0:00:00]} d6 {[%emt 0:00:00]} 3. d4 {[%emt 0:00:00]} cxd4 {[%emt 0:00:00]} 4. Nxd4 {[%emt 0:00:00]} Nf6 {[%emt 0:00:00]} 5. Nc3 {[%emt 0:00:00]} g6 {[%emt 0:00:00]} 6. Be3 {[%emt 0:00:17]} Bg7 {[%emt 0:01:07]} 7. f3 {[%emt 0:00:04]} a6 {[%emt 0:00:13]} 8. Bc4 {[%emt 0:06:26]} b5 {[%emt 0:00:17]} 9. Bb3 {[%emt 0:01:27]} Bb7 {[%emt 0:00:58]} 10. a4 {[%emt 0:05:45]} b4 {[%emt 0:04:09]} 11. Nd5 {[%emt 0:02:52]} Nxd5 {[%emt 0:15:13]} 12. Bxd5 {[%emt 0:00:11]} Bxd5 {[%emt 0:01:25]} 13. exd5 {[%emt 0:00:05]} Qa5 {[%emt 0:00:18]} 14. Nb3 {[%emt 0:09:42]} Qc7 {[%emt 0:00:06]} 15. Bd4 {[%emt 0:04:29]} O-O {[%emt 0:00:09]} 16. Bxg7 {[%emt 0:05:10]} Kxg7 {[%emt 0:00:02]} 17. Qd4+ {[%emt 0:00:50]} Kg8 {[%emt 0:00:02]} 18. Rc1 {[%emt 0:03:14]} Nd7 {[%emt 0:05:43]} 19. O-O {[%emt 0:03:25]} Qb6 {[%emt 0:01:18]} 20. Rfd1 {[%emt 0:04:48]} Rfc8 {[%emt 0:03:48]} 21. a5 {[%emt 0:16:19]} Qxd4+ {[%emt 0:05:51]} 22. Nxd4 {[%emt 0:01:04]} Nf6 {[%emt 0:00:44]} 23. Nb3 {[%emt 0:20:24]} Rab8 {[%emt 0:01:53]} 24. Rd2 {[%emt 0:00:08]} Kf8 {[%emt 0:04:20]} 25. g4 {[%emt 0:01:23]} Rb5 {[%emt 0:05:00]} 26. Rcd1 {[%emt 0:00:03]} Nd7 {[%emt 0:00:06]} 27. Kf2 {[%emt 0:03:11]} Ne5 {[%emt 0:00:25]} 28. Re2 {[%emt 0:06:49]} Rc7 {[%emt 0:01:52]} 29. Rd4 {[%emt 0:01:47]} Nc4 {[%emt 0:02:19]} 30. g5 {[%emt 0:01:54]} Nxb2 {[%emt 0:01:25]} 31. Kg3 {[%emt 0:02:00]} Rc4 {[%emt 0:02:36]} 32. Ree4 {[%emt 0:00:45]} Rxd4 {[%emt 0:00:55]} 33. Rxd4 {[%emt 0:00:03]} Ke8 {[%emt 0:03:48]} 34. Nc1 {[%emt 0:01:39]} Kd7 {[%emt 0:04:11]} 35. Na2 {[%emt 0:00:35]} Rxa5 {[%emt 0:01:01]} 36. Nxb4 {[%emt 0:00:09]} Ra4 {[%emt 0:00:07]} 37. Nc6 {[%emt 0:00:57]} Rxd4 {[%emt 0:00:44]} 38. Nxd4 {[%emt 0:00:03]} Nd1 {[%emt 0:00:17]} 39. Kf4 {[%emt 0:00:51]} Nc3 {[%emt 0:00:06]} 40. Nb3 {[%emt 0:00:16]} Nxd5+ {[%emt 0:00:08]} 41. Ke4 {[%emt 0:00:03]} e6 {[%emt 0:00:49]} 42. c4 {[%emt 0:00:18]} Nb6 {[%emt 0:01:30]} 43. c5 {[%emt 0:00:24]} d5+ {[%emt 0:00:03]} 44. Ke5 {[%emt 0:00:10]} Nc4+ {[%emt 0:00:27]} 45. Kf6 {[%emt 0:00:13]} a5 {[%emt 0:00:06]} 46. Kxf7 {[%emt 0:00:45]} a4 {[%emt 0:00:06]} 47. Nc1 {[%emt 0:00:26]} a3 {[%emt 0:02:18]} 48. Kg7 {[%emt 0:01:15]} d4 {[%emt 0:00:07]} 49. Kxh7 {[%emt 0:00:06]} d3 {[%emt 0:00:06]} 50. Nxd3 {[%emt 0:00:03]} a2 {[%emt 0:00:07]} 51. c6+ {[%emt 0:00:03]} Kc7 {[%emt 0:00:05]} 52. Kxg6 {[%emt 0:00:22]} a1=Q {[%emt 0:00:07]} 53. Kh7 {[%emt 0:00:25]} Qb1 {[%emt 0:00:12]} 54. g6 {[%emt 0:00:18]} Qxd3 {[%emt 0:00:10]} 0-1

[Event "84th ESP-ch 2019"]
[Site "Marbella"]
[Date "2019.11.21"]
[Round "6.34"]
[White "Martin Hernandez, Ruben"]
[Black "Hernandez Perez, Jesus"]
[Result "1-0"]
[ECO "A04"]
[WhiteElo "2206"]
[BlackElo "1956"]
[Annotator "ChessBase"]
[PlyCount "47"]
[EventDate "2019.11.16"]
[EventType "swiss"]
[EventCountry "ESP"]
[SourceTitle "playchess.com"]
[Source "ChessBase"]
[SourceQuality "1"]
[TimeControl "5400+30"]

1. Nf3 {[%emt 0:00:56]} e6 {[%emt 0:00:05]} 2. c4 {[%emt 0:00:37]} f5 {[%emt 0:00:46]} 3. g3 {[%emt 0:00:14]} Nf6 {[%emt 0:00:15]} 4. Bg2 {[%emt 0:00:15]} d5 {[%emt 0:00:22]} 5. O-O {[%emt 0:00:34]} c6 {[%emt 0:00:53]} 6. d3 {[%emt 0:02:39]} dxc4 {[%emt 0:05:08]} 7. dxc4 {[%emt 0:00:10]} Qxd1 {[%emt 0:00:26]} 8. Rxd1 {[%emt 0:00:15]} Bc5 {[%emt 0:01:27]} 9. Nc3 {[%emt 0:04:19]} O-O {[%emt 0:03:28]} 10. Bf4 {[%emt 0:11:43]} Nbd7 {[%emt 0:05:56]} 11. Na4 {[%emt 0:14:59]} Be7 {[%emt 0:02:57]} 12. Ne5 {[%emt 0:01:00]} Nxe5 {[%emt 0:04:23]} 13. Bxe5 {[%emt 0:01:13]} Nd7 {[%emt 0:02:12]} 14. Bd6 {[%emt 0:00:20]} Kf7 {[%emt 0:05:03]} 15. b3 {[%emt 0:01:45]} Bf6 {[%emt 0:14:45]} 16. Rac1 {[%emt 0:00:52]} Re8 {[%emt 0:00:36]} 17. e4 {[%emt 0:00:14]} Nb6 {[%emt 0:05:02]} 18. Nc5 {[%emt 0:01:58]} e5 {[%emt 0:02:08]} 19. exf5 {[%emt 0:00:48]} Rd8 {[%emt 0:05:47]} 20. g4 {[%emt 0:05:14]} g6 {[%emt 0:06:25]} 21. Ne4 {[%emt 0:02:07]} gxf5 {[%emt 0:01:39]} 22. Nxf6 {[%emt 0:00:06]} Kxf6 {[%emt 0:00:17]} 23. Bxe5+ {[%emt 0:00:09]} Ke7 {[%emt 0:00:15]} 24. Bf6+ {[%emt 0:00:07]} 1-0

[Event "84th ESP-ch 2019"]
[Site "Marbella"]
[Date "2019.11.21"]
[Round "6.35"]
[White "Rodriguez Reinoso, Victoriano"]
[Black "Sanchez Elena, Lucia"]
[Result "1/2-1/2"]
[ECO "A05"]
[WhiteElo "2204"]
[BlackElo "1662"]
[Annotator "ChessBase"]
[PlyCount "63"]
[EventDate "2019.11.16"]
[EventType "swiss"]
[EventCountry "ESP"]
[SourceTitle "playchess.com"]
[Source "ChessBase"]
[SourceQuality "1"]
[TimeControl "5400+30"]

1. Nf3 {[%emt 0:00:00]} Nf6 {[%emt 0:00:00]} 2. c4 {[%emt 0:00:00]} e6 {[%emt 0:00:08]} 3. g3 {[%emt 0:00:20]} d5 {[%emt 0:00:26]} 4. b3 {[%emt 0:00:31]} Be7 {[%emt 0:00:32]} 5. Bg2 {[%emt 0:00:30]} O-O {[%emt 0:00:18]} 6. Bb2 {[%emt 0:00:07]} a5 {[%emt 0:00:28]} 7. O-O {[%emt 0:06:30]} a4 {[%emt 0:01:09]} 8. d4 {[%emt 0:04:37]} a3 {[%emt 0:17:11]} 9. Bc1 {[%emt 0:00:46]} c6 {[%emt 0:01:00]} 10. c5 {[%emt 0:03:25]} b6 {[%emt 0:08:04]} 11. b4 {[%emt 0:06:54]} Na6 {[%emt 0:05:04]} 12. Bxa3 {[%emt 0:01:01]} Qc7 {[%emt 0:06:50]} 13. Qd3 {[%emt 0:15:33]} Nd7 {[%emt 0:12:36]} 14. Rc1 {[%emt 0:15:15]} e5 {[%emt 0:11:11]} 15. cxb6 {[%emt 0:02:28]} Qxb6 {[%emt 0:02:29]} 16. dxe5 {[%emt 0:02:12]} Bxb4 {[%emt 0:03:07]} 17. Bxb4 {[%emt 0:04:35]} Nxb4 {[%emt 0:00:08]} 18. Qd2 {[%emt 0:00:39]} Nc5 {[%emt 0:05:03]} 19. Nc3 {[%emt 0:00:17]} Bf5 {[%emt 0:02:05]} 20. Nd4 {[%emt 0:00:48]} Bg6 {[%emt 0:00:44]} 21. a3 {[%emt 0:12:34]} Nba6 {[%emt 0:03:24]} 22. Ra2 {[%emt 0:01:14]} Nd3 {[%emt 0:02:45]} 23. exd3 {[%emt 0:03:23]} Qxd4 {[%emt 0:00:06]} 24. Ne2 {[%emt 0:01:01]} Qxd3 {[%emt 0:00:46]} 25. Qxd3 {[%emt 0:00:38]} Bxd3 {[%emt 0:00:07]} 26. Rxc6 {[%emt 0:00:09]} Nb4 {[%emt 0:00:25]} 27. Rd2 {[%emt 0:02:06]} Nxc6 {[%emt 0:00:51]} 28. Rxd3 {[%emt 0:00:03]} Nxe5 {[%emt 0:05:14]} 29. Rxd5 {[%emt 0:00:29]} Rfe8 {[%emt 0:00:25]} 30. Rxe5 {[%emt 0:01:43]} Rxe5 {[%emt 0:00:18]} 31. Bxa8 {[%emt 0:00:09]} Rxe2 {[%emt 0:00:10]} 32. Bc6 1/2-1/2

[Event "84th ESP-ch 2019"]
[Site "Marbella"]
[Date "2019.11.21"]
[Round "6.36"]
[White "Juan Mas, Santiago"]
[Black "Represa Perez, Mireya"]
[Result "0-1"]
[ECO "B21"]
[WhiteElo "1930"]
[BlackElo "2189"]
[Annotator "ChessBase"]
[PlyCount "36"]
[EventDate "2019.11.16"]
[EventType "swiss"]
[EventCountry "ESP"]
[SourceTitle "playchess.com"]
[Source "ChessBase"]
[SourceQuality "1"]
[TimeControl "5400+30"]

1. e4 {[%emt 0:00:00]} c5 2. d4 {[%emt 0:00:00]} cxd4 {[%emt 0:00:00]} 3. c3 {[%emt 0:00:00]} dxc3 {[%emt 0:00:58]} 4. Nxc3 {[%emt 0:00:00]} Nc6 {[%emt 0:00:48]} 5. Nf3 {[%emt 0:00:00]} d6 {[%emt 0:00:32]} 6. Bc4 {[%emt 0:00:21]} e6 {[%emt 0:00:50]} 7. O-O {[%emt 0:01:35]} Be7 {[%emt 0:01:01]} 8. Qe2 {[%emt 0:02:31]} Nf6 {[%emt 0:00:58]} 9. Rd1 {[%emt 0:00:11]} e5 {[%emt 0:00:12]} 10. Be3 {[%emt 0:04:13]} O-O {[%emt 0:02:22]} 11. b4 {[%emt 0:02:33]} a6 {[%emt 0:03:10]} 12. Rac1 {[%emt 0:06:18]} Bg4 {[%emt 0:01:37]} 13. Nd5 {[%emt 0:11:00]} Nxd5 {[%emt 0:12:04]} 14. Bxd5 {[%emt 0:00:58]} Nxb4 {[%emt 0:03:01]} 15. Bxb7 {[%emt 0:03:08]} Rb8 {[%emt 0:05:32]} 16. Bxa6 {[%emt 0:02:07]} d5 {[%emt 0:07:34]} 17. Bc5 {[%emt 0:07:08]} Bxc5 {[%emt 0:02:33]} 18. Rxc5 {[%emt 0:01:57]} Qb6 {[%emt 0:01:03]} 0-1

[Event "84th ESP-ch 2019"]
[Site "Marbella"]
[Date "2019.11.21"]
[Round "6.40"]
[White "Maceira Moya, Nery"]
[Black "Medina Romero, Jose"]
[Result "0-1"]
[ECO "E63"]
[WhiteElo "1773"]
[BlackElo "2083"]
[Annotator "NA"]
[PlyCount "84"]
[EventDate "2019.11.16"]
[EventType "swiss"]
[EventCountry "ESP"]
[SourceTitle "playchess.com"]
[Source "ChessBase"]
[SourceQuality "1"]
[TimeControl "5400+30"]

1. Nf3 {[%emt 0:00:00]} g6 {[%emt 0:00:00]} 2. g3 {[%emt 0:00:00]} Bg7 {[%emt 0:00:00]} 3. d4 {[%emt 0:00:00]} Nf6 {[%emt 0:00:00]} 4. Bg2 {[%emt 0:00:00]} O-O {[%emt 0:00:01]} 5. c4 {[%emt 0:00:01]} d6 {[%emt 0:00:15]} 6. O-O {[%emt 0:00:08]} a6 {[%emt 0:01:01]} 7. Nc3 {[%emt 0:00:42]} Nc6 {[%emt 0:00:08]} 8. e4 {[%emt 0:03:36]} e5 {[%emt 0:00:27]} 9. d5 {[%emt 0:05:11] E63: King's Indian: Fianchetto: Panno Variation with 7...a6} Na5 {[%emt 0:00:05]} (9... Ne7 10. Ne1 b5 11. cxb5 axb5 12. Nc2 {½-½ (12) Blagojevic,D (2518)-Vovk,A (2622) Gallipoli 2014}) 10. b3 c5 {[%emt 0:00:19]} 11. Bd2 {[%emt 0:01:15]} Bd7 {[%emt 0:01:08]} 12. Qe2 {[%emt 0:07:57]} Rb8 $146 {[%emt 0:01:52]} ({Predecessor:} 12... Qc7 13. Rfb1 Rfb8 14. a4 b6 15. Ne1 Nb7 16. Nd3 a5 {1-0 (45) Koay,Y (1641)-Lim,F (1538) Penang 2019}) 13. Na4 {[%emt 0:02:51]} b5 {[%emt 0:02:25]} 14. Nb2 {[%emt 0:00:33]} h6 {[%emt 0:06:57]} 15. Rfc1 {[%emt 0:01:05]} Nb7 {[%emt 0:02:40]} 16. Ne1 {[%emt 0:06:26]} Ne8 {[%emt 0:00:37]} 17. f4 {[%emt 0:10:38]} exf4 {[%emt 0:00:54]} 18. Bxf4 {[%emt 0:00:09]} bxc4 {[%emt 0:01:55]} 19. bxc4 {[%emt 0:00:21]} Bd4+ {[%emt 0:02:54]} 20. Kh1 {[%emt 0:01:38]} (20. Be3 $11) 20... Qf6 {[%emt 0:00:47]} (20... Nf6 $15) 21. Ned3 {[%emt 0:00:53]} Na5 {[%emt 0:01:09]} (21... g5 $11 {remains equal.} 22. Be3 Qg7) 22. Rab1 {[%emt 0:00:19]} h5 {[%emt 0:05:50]} 23. Qd2 {[%emt 0:03:26]} Qd8 {[%emt 0:00:51]} 24. e5 {[%emt 0:05:54]} (24. Bg5 $16 f6 25. Be3) 24... dxe5 25. Nxe5 {[%emt 0:03:27]} Bf5 {[%emt 0:01:01]} 26. Nbd3 {[%emt 0:04:16]} Rxb1 {[%emt 0:00:24]} 27. Rxb1 {[%emt 0:00:14]} Bxe5 {[%emt 0:00:28]} 28. Bxe5 {[%emt 0:00:34]} Nxc4 {[%emt 0:00:05]} 29. Qd1 {[%emt 0:05:05]} Bxd3 {[%emt 0:00:48]} 30. Rb8 {[%emt 0:01:13]} Qe7 $19 {[%emt 0:00:30]} 31. Bf4 {[%emt 0:00:58]} Be4 {[%emt 0:00:54]} 32. Qc1 {[%emt 0:03:36]} Bxg2+ {[%emt 0:00:15]} 33. Kxg2 {[%emt 0:00:11]} Qe4+ {[%emt 0:00:09]} 34. Kg1 {[%emt 0:01:30]} Qd4+ {[%emt 0:00:31]} 35. Kg2 {[%emt 0:00:16]} Qxd5+ {[%emt 0:00:10]} 36. Kg1 {[%emt 0:00:09]} Qd4+ {[%emt 0:00:10]} 37. Kg2 {[%emt 0:00:07]} Nf6 {[%emt 0:00:09]} 38. Rb3 {[%emt 0:01:36]} Re8 {[%emt 0:00:10]} 39. Rf3 {[%emt 0:00:55]} Re2+ {[%emt 0:00:18]} 40. Kf1 {[%emt 0:01:12]} Rxh2 {[%emt 0:00:06]} 41. Be3 {[%emt 0:00:35]} Nxe3+ {[%emt 0:00:50]} 42. Rxe3 {[%emt 0:00:08]} Rh1+ {[%emt 0:00:10]} 0-1